bitfinex/quotes_ETHUSD_20240621
["timestamp","ask_amount","ask_price","bid_price","bid_amount"]
[1718983852264,2.27863,3510.9,3510.3,2.27894]
[1718983852569,2.27888,3510.5,3510.1,2.27908]
[1718983852862,2.27933,3509.8,3509.4,2.27953]
[1718983853033,2.27882,3510.6,3509.5,2.27947]
[1718983853034,2.27928,3509.9,3509.5,2.27947]
[1718983853440,2.27919,3510.1,3509.6,2.27944]
[1718983853643,2.27938,3509.8,3509.4,2.27957]
[1718983854071,2.27921,3510.0,3509.2,2.3341]
[1718983854072,2.27923,3510.0,3509.2,2.3341]
[1718983854270,2.27951,3509.6,3509.2,4.61381]
[1718983854429,2.2794,3509.7,3509.2,4.61376]
[1718983854845,2.2794,3509.7,3509.3,2.27965]
[1718983855549,0.34050008,3509.7,3508.9,2.2799]
[1718983855874,2.27956,3509.5,3508.9,2.27991]
[1718983856077,2.27943,3509.7,3509.0,2.27983]
[1718983856379,2.27952,3509.5,3508.8,3.0]
[1718983856578,2.27961,3509.4,3509.0,2.27984]
[1718983857182,2.2798,3509.1,3508.7,2.344]
[1718983857483,2.27974,3509.2,3508.8,2.27998]
[1718983858472,2.27976,3509.2,3508.6,2.2801]
[1718983858774,2.27976,3509.2,3508.7,0.55]
[1718983858971,2.27976,3509.2,3508.7,2.83002]
[1718983859399,2.27979,3509.1,3508.7,0.55]
[1718983859533,2.27991,3508.9,3508.1,2.28043]
[1718983859733,2.28009,3508.7,3508.2,2.28036]
[1718983860371,2.2798,3509.1,3508.6,2.28009]
[1718983860585,2.2798,3509.1,3508.2,2.736429]
[1718983860586,2.27953,3509.5,3508.3,2.2803]
[1718983860739,2.27966,3509.3,3508.3,2.2803]
[1718983861084,2.27981,3509.1,3508.4,2.83023]
[1718983861280,2.28004,3508.8,3508.3,2.28029]
[1718983861435,2.28004,3508.8,3508.4,2.28022]
[1718983861635,2.27973,3509.2,3507.7,6.39384]
[1718983861891,2.28015,3508.6,3508.1,2.28038]
[1718983862039,2.28015,3508.6,3508.2,2.8303]
[1718983862237,2.28005,3508.7,3508.3,2.2803]
[1718983862463,2.28004,3508.7,3508.3,2.2803]
[1718983862787,2.28004,3508.7,3508.2,0.55]
[1718983862788,2.28024,3508.4,3508.2,0.55]
[1718983862970,2.28024,3508.4,3508.1,0.55]
[1718983863279,2.27977,3509.2,3508.7,2.27998]
[1718983863578,2.27965,3509.3,3508.6,2.28006]
[1718983863882,2.27919,3510.1,3509.4,2.27958]
[1718983864193,3.0,3510.5,3509.4,2.27958]
[1718983864194,2.27908,3510.2,3509.8,2.27932]
[1718983864399,2.4092,3510.7,3509.8,2.27932]
[1718983864535,2.4092,3510.7,3509.5,2.27946]
[1718983864536,2.27919,3510.1,3509.6,2.27944]
[1718983864741,0.24092,3510.6,3509.1,2.27977]
[1718983864975,2.27944,3509.7,3509.2,2.27972]
[1718983865274,2.27946,3509.6,3509.2,2.27972]
[1718983865502,1.77462434,3511.6,3508.6,5.09009]
[1718983865503,2.27914,3510.1,3508.9,2.27991]
[1718983865778,2.27961,3509.4,3509.0,2.82982]
[1718983865938,2.27961,3509.4,3508.8,5.27994]
[1718983866140,2.27935,3509.8,3508.8,2.27997]
[1718983866343,2.27953,3509.5,3509.0,2.27979]
[1718983866545,2.27925,3510.0,3508.4,4.713]
[1718983866741,4.35105779,3509.9,3509.4,2.27953]
[1718983866980,2.2791,3510.2,3509.6,2.27945]
[1718983867189,2.2791,3510.2,3509.8,2.27931]
[1718983867480,2.2791,3510.2,3509.7,2.27939]
[1718983867481,4.35068204,3510.1,3509.7,2.27939]
[1718983867651,2.27926,3509.9,3509.3,4.66165]
[1718983867851,2.27926,3509.9,3509.3,5.355784]
[1718983868049,2.27926,3509.9,3509.4,0.05698033]
[1718983868454,2.2799,3509.0,3508.2,3.0]
[1718983868671,2.2799,3509.0,3508.6,2.2801]
[1718983868856,2.27981,3509.1,3508.6,2.2801]
[1718983869058,2.27994,3508.9,3508.4,2.28023]
[1718983869464,2.27998,3508.8,3508.4,2.28023]
[1718983869877,2.27992,3508.9,3508.5,2.83015]
[1718983870081,2.27969,3509.3,3508.6,2.28008]
[1718983870383,2.0719897,3509.2,3508.6,2.28008]
[1718983870691,2.27978,3509.1,3508.5,0.55]
[1718983870862,2.27978,3509.1,3506.8,1.19162251]
[1718983870863,2.28004,3508.7,3508.0,2.28049]
[1718983871062,0.43516797,3509.2,3507.6,2.28073]
[1718983871063,2.28053,3508.0,3507.6,2.28073]
[1718983871386,2.28044,3508.1,3507.7,2.28068]
[1718983871586,2.27985,3509.0,3508.5,2.28011]
[1718983871757,2.07217875,3508.9,3508.5,2.28011]
[1718983872083,2.07217875,3508.9,3508.5,2.28012]
[1718983872249,2.07217875,3508.9,3508.4,2.28023]
[1718983872250,2.07217875,3508.9,3508.6,2.2801]
[1718983872444,2.07211235,3508.8,3508.7,2.28001]
[1718983872645,2.27954,3509.5,3509.0,2.2798]
[1718983872886,2.07199092,3509.4,3509.0,2.27981]
[1718983873088,2.07199092,3509.4,3509.3,2.27965]
[1718983873383,2.27933,3509.8,3509.4,2.27959]
[1718983873554,2.07173784,3509.7,3509.4,2.27959]
[1718983874103,2.07173784,3509.7,3509.5,2.2795]
[1718983874261,2.07173784,3509.6,3509.5,2.2795]
[1718983874464,2.07167891,3509.9,3509.6,2.27945]
[1718983874789,2.07167891,3509.9,3509.1,0.832981]
[1718983874790,2.07153582,3509.8,3509.4,2.27959]
[1718983874969,0.12669838,3510.0,3509.8,2.27933]
[1718983875155,2.07147531,3509.9,3509.8,2.27933]
[1718983875494,0.12669838,3510.0,3509.8,2.27933]
[1718983875984,0.12669838,3510.0,3509.7,2.27938]
[1718983876199,2.27927,3509.9,3509.5,2.27946]
[1718983876415,0.12669838,3510.0,3509.6,2.27945]
[1718983876416,2.40589838,3510.0,3509.6,2.27945]
[1718983876702,0.12669838,3510.0,3509.3,2.27961]
[1718983876911,0.12669838,3510.0,3509.8,2.2793]
[1718983877207,0.12669838,3510.0,3509.9,4.55852]
[1718983877375,0.12669838,3510.0,3509.9,2.27926]
[1718983877890,0.12669838,3510.0,3509.7,2.27938]
[1718983878268,0.12669838,3510.0,3509.4,2.27953]
[1718983878269,0.12669838,3510.0,3509.3,0.3112621]
[1718983878469,0.12669838,3510.0,3509.6,2.27944]
[1718983878470,2.40590838,3510.0,3509.6,2.27944]
[1718983878997,2.40590838,3510.0,3509.7,2.27939]
[1718983881311,0.12669838,3510.0,3509.7,2.27939]
[1718983881491,0.12669838,3510.0,3509.8,2.27933]
[1718983881874,0.12669838,3510.0,3509.7,2.27938]
[1718983882663,0.12669838,3510.0,3509.8,2.27927]
[1718983883707,0.12669838,3510.0,3509.9,2.27926]
[1718983886113,0.12669838,3510.0,3509.8,0.455866]
[1718983886267,0.12669838,3510.0,3509.8,2.735186]
[1718983886710,0.12669838,3510.0,3509.8,0.455866]
[1718983887083,0.12669838,3510.0,3509.8,2.735166]
[1718983888085,0.12669838,3510.0,3509.8,2.2793]
[1718983888585,0.12669838,3510.0,3509.9,2.27926]
[1718983889688,0.12669838,3510.0,3509.9,4.55852]
[1718983889913,0.12669838,3510.0,3509.9,5.10852]
[1718983890207,0.12669838,3510.0,3509.9,7.38778]
[1718983890408,0.12669838,3510.0,3509.9,8.738768]
[1718983890829,0.12669838,3510.0,3509.9,14.018028]
[1718983893819,0.12669838,3510.0,3509.9,11.738768]
[1718983895879,0.12669838,3510.0,3509.9,14.018028]
[1718983896134,0.12669838,3510.0,3509.9,15.731028]
[1718983896420,4.36369307,3511.6,3511.4,2.27824]
[1718983896421,1.78756549,3511.6,3511.4,2.27824]
[1718983896632,2.27808,3511.8,3511.1,2.27845]
[1718983896633,2.27803,3511.8,3511.1,2.27845]
[1718983896782,4.34861749,3511.7,3511.2,2.27837]
[1718983897121,2.27803,3511.8,3511.2,2.27837]
[1718983897122,2.27804,3511.8,3511.4,2.27829]
[1718983897344,2.07052131,3511.7,3511.4,2.27828]
[1718983897619,2.07052131,3511.7,3511.1,2.27848]
[1718983897778,1.78705669,3512.0,3511.1,0.666406]
[1718983897983,2.27803,3511.8,3511.4,2.27829]
[1718983898702,2.27803,3511.8,3511.5,2.27822]
[1718983899205,2.2779,3512.0,3511.5,2.27822]
[1718983899206,4.55586,3512.0,3511.5,2.27822]
[1718983899405,2.27804,3511.8,3511.5,2.27822]
[1718983900018,2.27804,3511.8,3511.4,2.27828]
[1718983900241,2.27818,3511.6,3511.1,2.27844]
[1718983900383,2.27818,3511.6,3511.2,2.27836]
[1718983900716,1.78519918,3512.1,3510.9,2.27855]
[1718983900717,2.27815,3511.7,3510.9,2.27855]
[1718983901048,2.27862,3510.9,3510.2,2.27906]
[1718983901316,2.27874,3510.7,3510.3,2.27896]
[1718983901514,2.27868,3510.8,3510.3,0.683727]
[1718983901828,2.27875,3510.7,3510.3,2.279]
[1718983903515,2.3751,3510.9,3509.7,2.27938]
[1718983903739,2.3751,3510.9,3509.9,2.27926]
[1718983903740,2.27906,3510.3,3509.9,2.27926]
[1718983904016,2.27895,3510.4,3510.0,2.2792]
[1718983904716,2.27902,3510.3,3509.9,2.27925]
[1718983906822,2.27901,3510.3,3509.9,2.27924]
[1718983907124,2.27901,3510.3,3509.2,7.553]
[1718983907125,2.27882,3510.6,3509.4,2.27953]
[1718983907289,2.27882,3510.6,3509.3,2.27959]
[1718983907290,2.27921,3510.0,3509.3,2.27959]
[1718983907496,2.27921,3510.0,3509.2,5.11969]
[1718983907497,2.27945,3509.7,3509.2,5.11969]
[1718983907699,2.27933,3509.8,3509.3,2.27961]
[1718983907891,2.27927,3509.9,3509.4,0.739933]
[1718983908127,2.27938,3509.8,3509.4,0.739933]
[1718983908277,2.2794,3509.7,3509.4,0.739933]
[1718983908791,2.27933,3509.8,3509.2,2.84]
[1718983909007,2.4481,3510.0,3508.8,4.67627]
[1718983909008,2.27965,3509.3,3508.9,2.2799]
[1718983909188,2.27958,3509.5,3509.0,2.27985]
[1718983909386,2.27958,3509.5,3509.1,2.735746]
[1718983909616,2.27959,3509.4,3509.1,0.455976]
[1718983910237,2.27959,3509.4,3508.9,2.27991]
[1718983910410,2.27959,3509.4,3509.0,0.55]
[1718983910802,2.27959,3509.4,3509.0,2.82982]
[1718983911733,2.27978,3509.1,3508.7,2.27998]
[1718983911935,2.27978,3509.1,3508.8,0.966713]
[1718983912306,2.27978,3509.1,3508.8,3.246683]
[1718983913251,2.27972,3509.2,3508.8,3.246683]
[1718983913538,2.27953,3509.5,3509.0,2.27984]
[1718983913938,2.27964,3509.4,3509.0,2.27984]
[1718983914237,2.27978,3509.1,3509.0,0.5526523]
[1718983914448,2.27978,3509.1,3508.8,0.966713]
[1718983914736,2.27998,3508.9,3508.5,2.28013]
[1718983915243,2.28005,3508.7,3508.3,2.28025]
[1718983915447,2.28005,3508.7,3508.3,3.047955]
[1718983918244,2.28005,3508.7,3507.8,2.28062]
[1718983918245,2.28035,3508.3,3507.8,2.28062]
[1718983918443,2.28035,3508.3,3507.9,2.28055]
[1718983918819,2.28007,3508.7,3507.8,2.28062]
[1718983919017,2.28029,3508.4,3508.0,2.2805]
[1718983920277,2.28029,3508.4,3507.9,0.228062]
[1718983920278,2.27999,3508.8,3508.2,2.28037]
[1718983920482,2.28004,3508.7,3507.9,0.228062]
[1718983920653,2.28035,3508.3,3507.9,0.228062]
[1718983920856,2.28024,3508.4,3507.9,2.508622]
[1718983921053,2.28024,3508.4,3508.0,0.6896312]
[1718983921287,2.28004,3508.7,3508.0,2.9701212]
[1718983921481,2.28004,3508.7,3508.2,2.28036]
[1718983921754,2.28002,3508.8,3508.2,2.28035]
[1718983921951,1.78651823,3509.1,3508.2,2.28035]
[1718983921952,4.06630823,3509.1,3508.2,2.28035]
[1718983922161,1.78651823,3510.3,3509.6,2.27943]
[1718983922405,2.4996,3510.7,3509.7,0.227943]
[1718983922406,2.07166037,3510.2,3509.7,0.227943]
[1718983922559,2.27881,3510.6,3509.8,2.27933]
[1718983922756,2.4996,3510.7,3510.0,2.27914]
[1718983923062,4.35012598,3510.6,3510.0,2.27914]
[1718983923269,4.35012598,3510.6,3509.3,2.107]
[1718983923270,2.27911,3510.2,3508.8,7.77203]
[1718983923470,2.27896,3510.4,3509.3,2.27965]
[1718983923688,2.2792,3510.0,3509.5,2.27951]
[1718983924271,2.2792,3510.0,3509.6,2.27946]
[1718983924667,2.93546782,3510.4,3509.9,2.27926]
[1718983924898,4.06405848,3510.5,3510.0,2.27914]
[1718983924899,2.27888,3510.5,3510.0,2.27914]
[1718983925115,2.27895,3510.4,3510.0,2.27914]
[1718983925522,2.27888,3510.5,3510.0,2.27914]
[1718983925523,2.27901,3510.3,3510.0,2.27914]
[1718983926178,2.27894,3510.4,3510.0,2.27913]
[1718983926374,2.27894,3510.4,3509.9,2.27926]
[1718983926597,2.27894,3510.4,3510.1,2.27912]
[1718983927025,2.27895,3510.4,3509.7,2.27938]
[1718983927225,2.27895,3510.4,3509.9,2.27926]
[1718983927410,2.4996,3510.7,3509.9,2.27926]
[1718983927411,4.28466456,3510.7,3509.9,2.27926]
[1718983927588,4.35019955,3510.6,3510.0,2.27913]
[1718983927788,4.35028955,3510.5,3510.0,2.27913]
[1718983927984,2.2789,3510.5,3510.0,2.27913]
[1718983928383,2.27882,3510.6,3510.0,2.27913]
[1718983928922,2.27882,3510.6,3510.2,2.27905]
[1718983929124,2.4996,3510.7,3510.3,2.27894]
[1718983929327,2.07135911,3510.6,3510.3,2.27899]
[1718983929685,2.07135911,3510.6,3510.4,2.27888]
[1718983929880,4.77835,3510.7,3510.3,2.279]
[1718983930189,2.27906,3510.3,3509.6,2.27945]
[1718983930399,2.27906,3510.3,3509.5,2.27952]
[1718983930597,2.27926,3510.0,3509.5,2.27952]
[1718983930812,2.27926,3510.0,3509.6,2.27944]
[1718983931090,2.27926,3510.0,3509.1,4.38675]
[1718983931091,2.27948,3509.6,3509.1,2.27977]
[1718983931393,2.27948,3509.6,3509.1,2.27978]
[1718983931611,2.27948,3509.6,3509.0,2.27984]
[1718983931820,2.27964,3509.4,3509.0,2.27984]
[1718983932186,2.27964,3509.4,3508.9,2.27991]
[1718983932553,2.27964,3509.4,3508.7,2.107]
[1718983932554,2.27952,3509.5,3509.1,2.27977]
[1718983933544,2.27957,3509.5,3509.0,2.27984]
[1718983933910,2.2794,3509.7,3509.3,2.27963]
[1718983934106,2.2794,3509.7,3509.3,4.55922]
[1718983934358,4.55427,3509.9,3509.1,2.107]
[1718983934521,2.27907,3510.2,3509.3,2.27964]
[1718983934711,4.35088821,3510.1,3509.7,2.27937]
[1718983934905,6.51559924,3510.3,3509.5,2.2795]
[1718983935147,2.07167112,3510.2,3509.7,2.27938]
[1718983935351,1.78493924,3510.7,3510.1,2.27908]
[1718983935648,2.27875,3510.7,3510.1,2.27908]
[1718983935854,2.27883,3510.6,3510.3,2.27897]
[1718983936008,2.27875,3510.7,3510.4,2.27892]
[1718983936009,2.27874,3510.7,3510.4,2.27892]
[1718983936205,2.27862,3510.9,3510.5,2.27884]
[1718983936445,2.27862,3510.9,3510.4,2.27893]
[1718983936645,4.06340924,3511.2,3510.5,2.27887]
[1718983936852,2.27863,3510.9,3510.5,2.27887]
[1718983937311,2.27863,3510.9,3510.6,2.27881]
[1718983937644,1.78440041,3511.2,3510.9,2.27859]
[1718983937848,2.27847,3511.2,3510.9,2.27859]
[1718983938648,2.27847,3511.2,3510.8,2.27867]
[1718983938835,2.27848,3511.1,3510.8,2.27867]
[1718983939912,2.27848,3511.1,3510.8,2.27866]
[1718983942155,4.17983428,3511.5,3510.8,2.27866]
[1718983942312,2.27836,3511.3,3510.8,2.27866]
[1718983942518,2.27822,3511.5,3511.2,2.27838]
[1718983942732,2.07084932,3511.4,3511.2,2.27838]
[1718983943009,2.27831,3511.4,3510.9,2.27861]
[1718983943211,2.27831,3511.4,3511.0,2.2785]
[1718983943516,2.27823,3511.5,3511.1,2.27847]
[1718983943731,4.3491394,3511.4,3511.1,2.27847]
[1718983944020,2.2783,3511.4,3511.1,2.27847]
[1718983944227,2.27896,3510.4,3510.0,2.27915]
[1718983944450,2.3731,3511.3,3510.1,2.27912]
[1718983944451,2.27887,3510.6,3510.1,2.27912]
[1718983944757,2.27887,3510.6,3510.1,2.27913]
[1718983944960,2.27888,3510.5,3510.1,2.27913]
[1718983945313,2.27882,3510.6,3510.2,2.27906]
[1718983946151,2.2792,3510.0,3509.6,2.27944]
[1718983946363,2.27933,3509.8,3509.4,2.27958]
[1718983946511,2.2794,3509.7,3509.5,0.54804185]
[1718983946824,2.27933,3509.8,3509.5,0.54804185]
[1718983947027,2.27933,3509.8,3509.2,2.2797]
[1718983947229,2.27933,3509.8,3509.0,4.38684]
[1718983947230,2.2794,3509.7,3509.3,2.27964]
[1718983948830,2.2794,3509.7,3509.4,2.27957]
[1718983950139,2.27927,3509.9,3509.4,2.27958]
[1718983950338,1.78700505,3510.3,3509.5,4.842409]
[1718983950661,2.27921,3510.0,3509.5,2.562929]
[1718983951439,2.27934,3509.8,3509.5,2.562929]
[1718983951649,2.27934,3509.8,3509.5,4.842439]
[1718983951836,2.27927,3509.9,3509.5,2.735439]
[1718983952040,2.27927,3509.9,3509.6,0.5014969]
[1718983952961,2.27939,3509.7,3509.6,0.5014969]
[1718983953324,2.27939,3509.7,3509.3,2.27965]
[1718983953325,2.27934,3509.8,3509.4,2.27952]
[1718983953650,2.2792,3510.0,3509.4,2.27952]
[1718983953855,2.27934,3509.8,3509.5,2.2795]
[1718983954055,2.27934,3509.8,3509.4,2.27957]
[1718983954354,2.27945,3509.7,3509.5,0.455922]
[1718983954519,2.27945,3509.7,3509.3,2.27965]
[1718983955358,2.27946,3509.6,3509.3,2.27965]
[1718983955660,2.27946,3509.6,3509.1,4.38678]
[1718983955661,2.2794,3509.7,3509.4,2.27957]
[1718983956758,2.27926,3509.9,3509.5,2.27952]
[1718983957067,2.2792,3510.0,3509.7,2.27937]
[1718983957068,2.27921,3510.0,3509.7,2.27937]
[1718983957232,2.27896,3510.4,3510.1,2.27912]
[1718983957565,2.27896,3510.4,3510.0,2.27918]
[1718983957566,2.07148858,3510.3,3510.0,2.27918]
[1718983957771,2.27889,3510.5,3510.2,2.27905]
[1718983957965,2.07130272,3510.4,3510.3,2.27899]
[1718983958427,1.78715337,3510.7,3510.3,0.455812]
[1718983958626,2.07119082,3510.6,3510.5,2.27887]
[1718983958887,2.27862,3510.9,3510.6,2.27877]
[1718983959174,2.27849,3511.1,3510.8,2.27866]
[1718983959328,2.08501227,3511.6,3510.6,2.717387]
[1718983959329,4.06544337,3511.4,3510.9,2.27856]
[1718983959528,2.07084331,3511.3,3510.8,2.27866]
[1718983959776,2.27817,3511.6,3511.2,2.27836]
[1718983959930,2.07068226,3511.5,3511.2,2.27836]
[1718983960249,1.78642194,3512.0,3511.3,2.27835]
[1718983960452,7.4,3512.1,3511.5,2.27817]
[1718983960453,2.07050772,3511.9,3511.5,2.27817]
[1718983960652,2.27797,3511.9,3511.5,2.27817]
[1718983960822,2.27798,3511.9,3511.5,2.27819]
[1718983961443,4.06415194,3512.3,3511.6,2.27815]
[1718983961444,1.78642194,3512.3,3511.6,2.27815]
[1718983961763,1.78642194,3512.5,3511.8,2.27802]
[1718983961926,2.07026176,3512.4,3512.0,2.2779]
[1718983962261,2.27746,3512.7,3512.3,2.27767]
[1718983962628,1.78502668,3512.9,3512.2,2.27777]
[1718983962943,2.71159541,3512.8,3512.2,2.27777]
[1718983963265,2.27764,3512.4,3512.1,2.27783]
[1718983963561,2.27751,3512.6,3512.1,2.27783]
[1718983963562,2.27758,3512.5,3512.1,2.27783]
[1718983965146,2.27758,3512.5,3512.2,2.27777]
[1718983965343,2.27758,3512.5,3512.0,2.27784]
[1718983965531,2.27758,3512.5,3512.2,2.27776]
[1718983966667,2.27758,3512.5,3512.0,4.55568]
[1718983966887,0.43043933,3512.5,3511.2,2.107]
[1718983967036,2.278,3511.9,3511.5,2.27821]
[1718983967604,2.27804,3511.8,3511.3,2.27835]
[1718983967873,2.27823,3511.5,3511.1,2.27847]
[1718983968235,2.27836,3511.3,3510.8,7.38562]
[1718983968430,2.27836,3511.3,3510.8,4.38562]
[1718983968673,2.27836,3511.3,3510.8,2.27867]
[1718983968973,2.27836,3511.3,3510.3,4.67668]
[1718983968974,2.27868,3510.9,3510.5,2.27887]
[1718983969174,1.78353318,3511.8,3510.4,2.27893]
[1718983969175,2.27874,3510.8,3510.4,2.27893]
[1718983969676,2.2788,3510.7,3510.2,9.64907]
[1718983969877,2.2788,3510.7,3510.3,2.27898]
[1718983970585,2.27879,3510.7,3510.1,2.27912]
[1718983970895,2.27879,3510.7,3510.0,2.107]
[1718983970896,2.27882,3510.6,3510.2,2.27906]
[1718983971095,2.27882,3510.6,3510.3,2.27898]
[1718983971270,2.27882,3510.6,3510.3,3.173411]
[1718983971892,2.27868,3510.8,3510.4,2.27891]
[1718983972203,2.27868,3510.8,3510.3,3.173411]
[1718983972204,11.46225457,3511.7,3511.0,2.27849]
[1718983972412,2.27835,3511.4,3511.0,2.27849]
[1718983972701,2.27833,3511.4,3511.0,2.27849]
[1718983973002,1.78409457,3512.0,3511.3,2.27834]
[1718983973207,2.27791,3512.0,3511.6,2.27813]
[1718983973362,2.27799,3511.9,3511.6,2.27813]
[1718983973564,2.27804,3511.8,3511.5,2.27821]
[1718983973783,2.27791,3512.0,3511.6,2.2781]
[1718983974731,2.27784,3512.1,3511.8,2.27803]
[1718983975080,2.27802,3511.9,3511.5,2.27821]
[1718983975427,2.27796,3512.0,3511.3,2.27831]
[1718983975582,2.27822,3511.6,3511.2,2.27837]
[1718983975793,2.27824,3511.5,3511.1,2.27848]
[1718983977025,2.27824,3511.5,3511.2,2.27839]
[1718983977238,2.27785,3512.1,3511.5,2.27819]
[1718983977396,2.27798,3511.9,3511.5,2.27819]
[1718983977986,2.278,3511.9,3511.5,2.27819]
[1718983978183,2.2781,3511.7,3511.4,2.27828]
[1718983978389,2.2781,3511.7,3511.3,2.27834]
[1718983978610,2.27804,3511.8,3511.4,2.27827]
[1718983979487,2.27804,3511.8,3511.4,2.733932]
[1718983980307,2.27804,3511.8,3511.4,2.27827]
[1718983980814,2.2781,3511.7,3511.4,2.27827]
[1718983981420,2.27786,3512.1,3510.8,3.0]
[1718983981629,2.27837,3511.3,3511.0,2.27854]
[1718983981993,2.2783,3511.4,3510.9,0.55]
[1718983982210,2.2783,3511.4,3511.0,2.27853]
[1718983982739,2.27828,3511.5,3511.1,2.27843]
[1718983983120,2.27829,3511.4,3511.1,2.27843]
[1718983983742,2.27829,3511.4,3511.0,2.27854]
[1718983984038,2.2783,3511.4,3511.1,2.27848]
[1718983985395,2.27798,3511.9,3511.1,0.455709]
[1718983985726,9.67759,3512.5,3511.1,0.455709]
[1718983985727,2.27791,3512.0,3511.6,2.2781]
[1718983985894,2.2779,3512.0,3511.7,2.27807]
[1718983986090,2.27777,3512.2,3511.8,2.27803]
[1718983986293,2.27791,3512.0,3511.5,2.27821]
[1718983986547,2.27791,3512.0,3511.7,2.27808]
[1718983986721,2.2779,3512.0,3511.6,0.455654]
[1718983987050,2.27823,3511.5,3511.1,2.27848]
[1718983987198,2.27838,3511.3,3510.9,10.37]
[1718983987407,2.2783,3511.4,3511.1,2.27848]
[1718983987711,2.27824,3511.5,3511.1,2.27848]
[1718983988106,2.2783,3511.4,3511.0,2.27855]
[1718983988307,2.27837,3511.3,3511.0,2.27855]
[1718983989419,2.27837,3511.3,3511.0,3.636367]
[1718983990553,2.27823,3511.5,3511.0,3.636357]
[1718983990744,2.27817,3511.6,3511.2,2.2784]
[1718983991321,2.27825,3511.5,3511.2,2.2784]
[1718983991524,2.2783,3511.4,3511.0,1.357817]
[1718983991755,2.27836,3511.3,3511.1,0.3636427]
[1718983991961,2.27848,3511.1,3510.8,2.27867]
[1718983992129,2.27857,3511.0,3510.7,4.65633]
[1718983992856,2.27857,3511.0,3510.3,2.27897]
[1718983992857,2.27881,3510.6,3510.3,2.27897]
[1718983993029,2.27862,3510.9,3510.5,2.27887]
[1718983993239,2.27856,3511.0,3510.6,2.2788]
[1718983994958,2.27847,3511.2,3510.7,2.27869]
[1718983995199,2.27847,3511.2,3510.6,2.2788]
[1718983995200,2.2785,3511.1,3510.8,2.27863]
[1718983995364,2.27856,3511.0,3510.7,2.27873]
[1718983995663,2.27842,3511.2,3510.8,2.27867]
[1718983995963,1.78495663,3512.1,3511.5,2.27816]
[1718983996268,2.27804,3511.8,3511.4,2.27823]
[1718983996471,2.27797,3511.9,3511.6,2.27815]
[1718983996645,2.27792,3512.0,3511.6,2.27815]
[1718983996850,2.27795,3512.0,3511.6,2.27815]
[1718983997053,2.27803,3511.8,3511.5,2.27816]
[1718983997257,2.27803,3511.8,3511.4,2.27827]
[1718983997677,2.27791,3512.0,3511.6,2.27815]
[1718983997876,2.27795,3512.0,3511.6,2.27815]
[1718983998576,2.27795,3512.0,3511.5,2.27822]
[1718983998577,2.27792,3512.0,3511.7,2.27809]
[1718983998878,2.27778,3512.2,3511.8,2.27798]
[1718983999045,2.27797,3511.9,3511.6,0.666237]
[1718983999239,2.27792,3512.0,3511.6,0.666237]
[1718983999437,2.27786,3512.1,3511.6,2.944397]
[1718983999665,2.27786,3512.1,3511.7,2.5724697]
[1718984000234,2.27792,3512.0,3511.7,0.2944397]
[1718984000337,2.27792,3512.0,3511.6,2.27815]
[1718984000741,2.27792,3512.0,3511.7,2.27804]
[1718984000960,2.27785,3512.1,3511.7,2.27804]
[1718984001162,4.06486373,3512.3,3511.9,2.27794]
[1718984001377,2.27768,3512.4,3512.1,2.27778]
[1718984001378,2.07024508,3512.2,3512.1,2.27778]
[1718984001584,2.07024508,3512.3,3512.1,2.27778]
[1718984002099,2.27745,3512.7,3512.3,2.27764]
[1718984002384,4.34746126,3512.6,3512.3,2.27764]
[1718984002558,2.27752,3512.6,3512.3,2.27764]
[1718984002966,2.27763,3512.5,3512.1,2.27778]
[1718984003286,4.34762311,3512.4,3512.1,2.27778]
[1718984003580,2.27766,3512.4,3512.1,2.27778]
[1718984004160,2.07002286,3512.3,3512.1,2.27778]
[1718984004464,2.07002286,3512.3,3512.0,2.27789]
[1718984004790,4.06551512,3512.6,3512.0,2.27789]
[1718984004942,2.27764,3512.4,3512.1,2.27778]
[1718984005281,2.27784,3512.1,3511.3,2.479]
[1718984005447,2.07016818,3512.0,3511.7,2.27808]
[1718984005644,2.2779,3512.1,3511.7,2.27808]
[1718984005901,2.07023157,3512.0,3511.5,2.27822]
[1718984006052,2.07023157,3511.9,3511.6,2.27815]
[1718984006385,4.55586,3512.0,3511.5,2.27816]
[1718984006589,2.07027317,3511.9,3511.3,2.106]
[1718984006798,2.07027317,3511.8,3510.9,2.4624]
[1718984006944,2.27854,3511.1,3510.6,9.6488]
[1718984007142,2.27824,3511.5,3510.4,2.37]
[1718984007143,2.27843,3511.2,3510.8,2.27867]
[1718984007485,2.0707698,3511.1,3510.8,2.27867]
[1718984007640,2.0707698,3511.1,3510.3,2.106]
[1718984007859,4.3493198,3511.0,3510.6,2.27876]
[1718984008089,2.07087083,3510.9,3510.6,2.27876]
[1718984008467,2.07087083,3510.9,3510.8,4.55736]
[1718984008685,4.06804202,3511.4,3510.9,2.2786]
[1718984008886,2.27842,3511.2,3510.9,2.2786]
[1718984009199,2.07075297,3511.1,3511.0,2.27855]
[1718984009369,2.07075297,3511.2,3510.9,2.2786]
[1718984009559,4.06805202,3511.4,3511.0,2.27855]
[1718984009759,4.34909107,3511.3,3511.0,2.27855]
[1718984009993,2.07072107,3511.2,3511.0,2.27855]
[1718984010381,2.07072107,3511.2,3511.1,2.27848]
[1718984010585,4.34909107,3511.3,3510.9,2.27857]
[1718984010774,2.07072107,3511.2,3511.1,8.94144]
[1718984010975,1.78972175,3512.0,3511.6,2.27816]
[1718984011176,3.85993985,3511.9,3511.6,2.27816]
[1718984011383,2.07037176,3511.8,3511.6,2.27816]
[1718984011588,2.07037176,3511.7,3511.6,2.27816]
[1718984011897,2.07037176,3511.9,3511.7,2.27809]